bitfinex/quotes_SOLUSD_20250815
["timestamp","ask_amount","ask_price","bid_price","bid_amount"]
[1755262837461,5.70689304,193.59,193.47,0.03]
[1755262837462,0.68,193.57,193.48,14.22616218]
[1755262837643,4.06780771,193.6,193.49,0.68]
[1755262837842,37.96,193.59,193.49,0.68]
[1755262838160,51.50616218,193.59,193.49,0.68]
[1755262838337,0.68,193.58,193.53,13.54616218]
[1755262838542,56.67180506,193.59,193.53,13.54616218]
[1755262838768,0.68,193.57,193.53,18.71331714]
[1755262839059,0.68,193.56,193.5,5.16795865]
[1755262839263,37.96,193.55,193.52,13.54616218]
[1755262839442,37.96,193.57,193.54,13.54616218]
[1755262839631,37.96,193.57,193.53,0.68]
[1755262840259,0.68,193.65,193.56,13.54616218]
[1755262840460,37.96,193.63,193.6,13.54616218]
[1755262840640,37.96,193.63,193.59,13.54616218]
[1755262840835,38.64,193.63,193.59,13.54616218]
[1755262841042,37.96,193.63,193.57,5.16604191]
[1755262841234,0.68,193.62,193.57,13.54616218]
[1755262841442,0.68,193.62,193.58,13.54616218]
[1755262842661,0.68,193.62,193.58,18.71183096]
[1755262842868,0.68,193.62,193.58,13.54616218]
[1755262843066,13.54616218,193.62,193.57,13.54616218]
[1755262843252,0.68,193.61,193.57,13.54616218]
[1755262843659,51.50616218,193.63,193.58,13.54616218]
[1755262843962,52.18616218,193.63,193.58,13.54616218]
[1755262844154,37.96,193.63,193.56,5.16633933]
[1755262844473,0.68,193.62,193.57,13.54616218]
[1755262844643,0.68,193.61,193.57,13.54616218]
[1755262845048,51.50616218,193.63,193.57,18.71217953]
[1755262845253,13.54616218,193.62,193.57,18.71217953]
[1755262845560,0.7,193.61,193.57,13.54616218]
[1755262845947,169.81,193.6,193.58,13.54616218]
[1755262846288,131.87,193.6,193.59,14.23616218]
[1755262846570,131.87,193.6,193.59,13.54616218]
[1755262847262,131.87,193.6,193.59,18.71171825]
[1755262847471,0.06,193.66,193.6,26.0]
[1755262847685,0.06,193.66,193.65,13.54616218]
[1755262847887,51.54616218,193.66,193.59,5.16555607]
[1755262848173,51.54616218,193.66,193.56,12.91569488]
[1755262848174,13.54616218,193.62,193.56,18.71251886]
[1755262848763,18.71099421,193.62,193.56,18.71251886]
[1755262849077,13.54616218,193.62,193.56,13.54616218]
[1755262849374,43.80450758,193.63,193.56,13.54616218]
[1755262849561,13.54616218,193.62,193.56,13.54616218]
[1755262849757,13.54616218,193.61,193.55,19.40273171]
[1755262850073,13.54616218,193.6,193.54,13.54616218]
[1755262850378,51.48616218,193.6,193.54,13.54616218]
[1755262850584,13.54616218,193.58,193.52,18.71358673]
[1755262850878,13.54616218,193.55,193.49,0.69]
[1755262851079,37.94,193.54,193.49,13.54616218]
[1755262851286,38.64,193.54,193.49,13.54616218]
[1755262851453,38.64,193.54,193.49,18.71432646]
[1755262851777,37.94,193.54,193.5,14.23616218]
[1755262851961,37.94,193.57,193.53,13.54616218]
[1755262852473,13.54616218,193.63,193.56,13.54616218]
[1755262852656,37.94,193.62,193.6,13.54616218]
[1755262852980,37.94,193.62,193.59,13.54616218]
[1755262853166,0.7,193.61,193.57,13.54616218]
[1755262853350,0.7,193.6,193.56,13.54616218]
[1755262853559,132.57,193.59,193.49,5.16822574]
[1755262853882,184.05616218,193.58,193.52,13.54616218]
[1755262854084,37.94,193.57,193.53,13.54616218]
[1755262854676,37.94,193.57,193.52,13.54616218]
[1755262854677,0.7,193.56,193.52,13.54616218]
[1755262854845,14.24616218,193.6,193.54,13.54616218]
[1755262855048,37.94,193.59,193.56,13.54616218]
[1755262855450,37.94,193.59,193.53,0.69]
[1755262855451,37.94,193.59,193.57,13.54616218]
[1755262855764,37.94,193.59,193.56,13.54616218]
[1755262856361,38.64,193.59,193.55,13.54616218]
[1755262856975,37.94,193.59,193.56,0.69]
[1755262857167,0.7,193.65,193.58,13.54616218]
[1755262857378,37.94,193.63,193.6,13.54616218]
[1755262858471,0.7,193.62,193.55,18.77311605]
[1755262858676,0.7,193.62,193.59,13.54616218]
[1755262859189,37.94,193.63,193.59,18.71170153]
[1755262859389,0.7,193.62,193.58,5.16575305]
[1755262859603,17.66043819,193.61,193.55,13.54616218]
[1755262859769,13.54616218,193.59,193.53,5.16715754]
[1755262860314,13.54616218,193.55,193.48,5.16849286]
[1755262860469,54.90299752,193.54,193.48,13.54616218]
[1755262860791,0.7,193.55,193.53,13.54616218]
[1755262860792,37.94,193.55,193.53,13.54616218]
[1755262860964,37.94,193.55,193.49,0.69]
[1755262860965,43.10662396,193.55,193.5,13.54616218]
[1755262861162,43.10662396,193.55,193.49,13.54616218]
[1755262861163,4.11426076,193.54,193.49,13.54616218]
[1755262861364,3.41426076,193.53,193.49,13.54616218]
[1755262861597,0.7,193.54,193.49,13.54616218]
[1755262861784,3.41725522,193.53,193.49,14.23616218]
[1755262861994,3.41674358,193.52,193.48,13.54616218]
[1755262862295,43.10662396,193.55,193.49,14.23616218]
[1755262862616,3.4186555,193.54,193.48,14.23616218]
[1755262862762,3.4186555,193.54,193.47,13.57616218]
[1755262862763,16.96481768,193.53,193.47,13.57616218]
[1755262863091,41.3586555,193.52,193.47,13.57616218]
[1755262863400,37.94,193.52,193.48,0.69]
[1755262863909,149.53565146,193.51,193.47,0.03]
[1755262864089,13.54616218,193.49,193.47,0.03]
[1755262864271,54.90565146,193.48,193.47,0.03]
[1755262864473,55.60565146,193.48,193.47,0.03]
[1755262864800,37.94,193.49,193.47,19.43492219]
[1755262864964,37.94,193.49,193.47,0.03]
[1755262865168,37.94,193.49,193.47,13.57616218]
[1755262865398,3.41783699,193.48,193.47,0.03]
[1755262865581,17.66399917,193.48,193.47,0.03]
[1755262865984,3.41783699,193.48,193.47,0.03]
[1755262867187,22.83249203,193.48,193.47,0.03]
[1755262867490,28.65237775,193.46,193.45,0.03]
[1755262867795,74.27807002,193.46,193.45,0.03]
[1755262868006,3.41783699,193.46,193.45,0.03]
[1755262868175,37.94,193.47,193.45,0.03]
[1755262868767,0.7,193.52,193.46,13.54616218]
[1755262869008,0.7,193.55,193.49,13.54616218]
[1755262869182,37.94,193.54,193.47,0.69]
[1755262869387,13.54616218,193.5,193.45,0.03]
[1755262869677,37.94,193.5,193.45,13.57616218]
[1755262870071,38.64,193.5,193.45,0.03]
[1755262870278,13.54616218,193.48,193.45,0.03]
[1755262870686,14.24616218,193.49,193.45,0.03]
[1755262870884,13.54616218,193.46,193.45,0.03]
[1755262871087,18.71518936,193.46,193.45,0.03]
[1755262871287,19.41518936,193.46,193.45,0.03]
[1755262871894,22.82869889,193.46,193.45,0.03]
[1755262872623,3.41350953,193.46,193.45,0.03]
[1755262872785,37.96,193.48,193.45,20.50551209]
[1755262872982,37.96,193.48,193.45,0.03]
[1755262873478,43.12850038,193.48,193.45,0.03]
[1755262873678,21.17551209,193.47,193.45,0.03]
[1755262873902,20.47551209,193.46,193.45,0.03]
[1755262874075,24.58739834,193.46,193.45,0.03]
[1755262874279,21.17551209,193.46,193.45,0.03]
[1755262874503,24.58732496,193.46,193.45,0.03]
[1755262874878,21.17551209,193.46,193.45,0.03]
[1755262875279,26.34453927,193.46,193.45,0.03]
[1755262877488,41.45075484,193.46,193.45,0.03]
[1755262877691,79.41075484,193.46,193.45,0.03]
[1755262878684,15.10621557,193.45,193.36,0.68]
[1755262878900,15.10621557,193.45,193.35,20.47551209]
[1755262878901,20.47551209,193.41,193.35,20.47551209]
[1755262879107,37.96,193.4,193.34,0.68]
[1755262879301,37.96,193.4,193.36,20.47551209]
[1755262879610,43.13075127,193.4,193.36,21.15551209]
[1755262879808,131.9,193.39,193.36,21.15551209]
[1755262880200,131.9,193.39,193.33,21.15551209]
[1755262880201,37.96,193.38,193.33,21.15551209]
[1755262880406,37.96,193.38,193.33,0.68]
[1755262880715,37.96,193.38,193.35,20.47551209]
[1755262881021,37.96,193.38,193.35,21.15551209]
[1755262881208,37.96,193.38,193.35,20.65551209]
[1755262881402,37.96,193.38,193.3,18.10657009]
[1755262881624,37.96,193.38,193.34,25.64767426]
[1755262881996,37.96,193.38,193.37,20.47551209]
[1755262882198,37.96,193.38,193.36,20.47551209]
[1755262882510,37.96,193.38,193.37,20.47551209]
[1755262882709,66.75149144,193.44,193.37,20.47551209]
[1755262882903,37.96,193.43,193.39,20.47551209]
[1755262883222,37.96,193.43,193.42,20.47551209]
[1755262883724,37.96,193.43,193.41,20.47551209]
[1755262884222,37.96,193.43,193.4,20.47551209]
[1755262885104,37.96,193.43,193.42,20.47551209]
[1755262885498,37.96,193.43,193.42,25.64560825]
[1755262885695,12.91941215,193.51,193.42,26.32560825]
[1755262885696,20.47551209,193.5,193.42,26.32560825]
[1755262885999,38.63,193.49,193.44,20.47551209]
[1755262886445,5.16660841,193.56,193.47,20.47551209]
[1755262886603,38.63,193.55,193.51,20.47551209]
[1755262886942,38.63,193.54,193.47,0.68]
[1755262887101,38.63,193.54,193.48,20.47551209]
[1755262887102,20.47551209,193.53,193.48,20.47551209]
[1755262887300,0.67,193.52,193.48,20.47551209]
[1755262887503,37.96,193.51,193.48,20.47551209]
[1755262887945,20.47551209,193.49,193.43,20.47551209]
[1755262888113,20.47551209,193.46,193.4,21.15551209]
[1755262888306,58.43551209,193.46,193.41,20.47551209]
[1755262888641,58.43551209,193.46,193.4,0.68]
[1755262888642,20.47551209,193.43,193.37,0.68]
[1755262888815,20.47551209,193.41,193.35,20.47551209]
[1755262889139,58.43551209,193.41,193.39,0.03]
[1755262889432,37.96,193.41,193.39,0.03]
[1755262890824,21.14551209,193.4,193.39,0.03]
[1755262891806,26.3161429,193.4,193.39,0.03]
[1755262893052,37.96,193.4,193.39,20.50551209]
[1755262893326,15.16621557,193.47,193.39,21.18551209]
[1755262893327,37.96,193.43,193.39,21.18551209]
[1755262893538,37.96,193.45,193.42,20.47551209]
[1755262893726,37.96,193.45,193.44,20.47551209]
[1755262893908,38.02,193.47,193.44,26.32507371]
[1755262894109,0.06,193.47,193.46,20.47551209]
[1755262894411,0.06,193.47,193.46,21.15551209]
[1755262894651,0.06,193.47,193.46,14.30374772]
[1755262895257,0.06,193.47,193.44,5.16956162]
[1755262895425,0.73,193.47,193.43,13.62374772]
[1755262895735,0.73,193.47,193.39,0.71]
[1755262895736,0.67,193.46,193.39,0.71]
[1755262895952,14.29374772,193.46,193.4,18.79431451]
[1755262896114,5.83903738,193.46,193.41,13.62374772]
[1755262896313,56.81251666,193.47,193.42,13.62374772]
[1755262896614,0.06,193.47,193.46,13.62374772]
[1755262897426,0.06,193.47,193.46,14.30374772]
[1755262898032,0.06,193.47,193.46,19.4727749]
[1755262898422,0.06,193.47,193.44,13.62374772]
[1755262898625,0.06,193.47,193.42,13.62374772]
[1755262898626,170.53,193.46,193.42,13.62374772]
[1755262899123,132.57,193.45,193.42,13.62374772]
[1755262899324,131.9,193.45,193.42,13.62374772]
[1755262899727,131.9,193.45,193.43,13.62374772]
[1755262899929,131.9,193.45,193.42,13.62374772]
[1755262900250,132.57,193.45,193.42,13.62374772]
[1755262900414,132.57,193.44,193.39,0.03]
[1755262900616,19.46703815,193.42,193.39,0.03]
[1755262901033,0.67,193.41,193.39,0.03]
[1755262901349,0.67,193.45,193.39,0.03]
[1755262901649,37.96,193.44,193.43,19.46703815]
[1755262901851,131.9,193.46,193.43,19.46703815]
[1755262902050,37.96,193.45,193.43,19.46703815]
[1755262902720,37.96,193.45,193.44,19.46703815]
[1755262903117,38.02,193.47,193.44,19.46703815]
[1755262903420,38.02,193.47,193.46,19.46703815]
[1755262904256,0.06,193.47,193.46,24.63606533]
[1755262904552,0.06,193.47,193.46,25.31606533]
[1755262905548,0.06,193.47,193.46,24.63606533]
[1755262906123,0.06,193.47,193.46,25.31606533]
[1755262906630,0.06,193.47,193.46,24.63606533]
[1755262906828,0.06,193.47,193.4,28.070447]
[1755262906829,0.73,193.47,193.4,38.92640097]
[1755262907057,0.73,193.47,193.44,19.46703815]
[1755262907551,0.06,193.47,193.45,19.46703815]
[1755262908820,0.06,193.47,193.46,20.14703815]
[1755262909019,0.06,193.47,193.46,19.46703815]
[1755262909936,0.06,193.47,193.44,5.16932308]
[1755262910129,0.06,193.47,193.46,19.46703815]
[1755262910545,0.06,193.47,193.46,20.14703815]
[1755262910731,0.06,193.47,193.46,19.46703815]
[1755262911347,0.06,193.47,193.45,19.46703815]
[1755262911649,0.06,193.47,193.44,19.46703815]
[1755262911849,0.06,193.47,193.45,19.46703815]
[1755262913029,0.06,193.47,193.46,19.46703815]
[1755262913360,0.06,193.47,193.46,20.14703815]
[1755262914129,0.06,193.47,193.46,25.31606533]
[1755262914969,0.06,193.51,193.48,26.0]
[1755262915131,0.06,193.58,193.5,19.46703815]
[1755262915336,0.06,193.58,193.57,19.46703815]
[1755262915762,0.73,193.58,193.49,37.94]
[1755262915925,37.94,193.57,193.53,19.46703815]
[1755262916130,38.61,193.57,193.53,19.46703815]
[1755262916362,38.61,193.57,193.54,19.46703815]
[1755262916570,37.94,193.57,193.56,19.46703815]
[1755262917072,0.06,193.58,193.56,19.46703815]
[1755262917242,0.06,193.58,193.57,19.46703815]
[1755262917641,0.06,193.58,193.57,20.14703815]
[1755262918250,0.06,193.58,193.57,25.31312793]
[1755262920680,0.06,193.61,193.6,26.0]
[1755262920837,0.06,193.65,193.6,91.63355992]
[1755262921042,0.06,193.69,193.64,39.5985155]
[1755262921260,0.06,193.69,193.63,13.5985155]
[1755262921261,0.06,193.69,193.66,39.5985155]
[1755262921458,0.06,193.69,193.68,13.5985155]
[1755262922355,0.06,193.69,193.68,18.76167122]
[1755262922553,0.06,193.69,193.68,19.44167122]
[1755262924679,0.06,193.69,193.68,20.41045916]
[1755262925146,0.06,193.69,193.68,25.57361488]
[1755262925476,0.06,193.69,193.68,20.41045916]
[1755262925682,0.06,193.69,193.68,25.57361488]
[1755262926564,0.06,193.69,193.68,20.41045916]
[1755262926943,0.73,193.69,193.68,20.41045916]
[1755262927153,0.06,193.69,193.68,20.41045916]
[1755262927758,0.73,193.69,193.67,20.41045916]
[1755262928092,0.67,193.68,193.65,26.0]
[1755262928254,0.67,193.68,193.67,20.41045916]
[1755262928453,0.67,193.67,193.66,20.41045916]
[1755262929160,0.06,193.69,193.66,20.41045916]
[1755262929347,0.73,193.69,193.67,20.41045916]
[1755262930355,0.67,193.68,193.65,20.41045916]
[1755262930561,0.67,193.67,193.64,20.41045916]
[1755262930756,5.16368893,193.66,193.62,20.41045916]
[1755262931077,0.67,193.65,193.58,43.06580894]
[1755262931287,0.67,193.65,193.6,20.41045916]
[1755262931508,5.16368893,193.66,193.61,20.41045916]
[1755262931691,0.67,193.64,193.6,20.41045916]
[1755262931881,0.67,193.63,193.6,20.41045916]
[1755262932370,25.57414809,193.66,193.6,20.41045916]
[1755262932371,131.9,193.65,193.6,20.41045916]
[1755262932575,0.67,193.64,193.61,20.41045916]
[1755262932876,5.16431805,193.64,193.61,20.41045916]
[1755262933074,5.16431805,193.64,193.57,43.09600173]
[1755262933075,0.67,193.63,193.6,20.41045916]
[1755262933380,0.67,193.62,193.6,20.41045916]
[1755262933582,5.16431805,193.64,193.58,26.0]
[1755262933807,0.67,193.61,193.59,20.41045916]
[1755262934103,5.16431805,193.64,193.59,20.41045916]
[1755262934104,5.83431805,193.64,193.59,20.41045916]
[1755262934308,0.67,193.63,193.59,20.41045916]
[1755262934508,0.67,193.63,193.6,20.41045916]
[1755262934799,174.96401304,193.65,193.61,20.41045916]
[1755262935106,175.61401304,193.65,193.61,20.41045916]
[1755262935283,0.65,193.64,193.61,20.41045916]
[1755262935809,0.06,193.69,193.63,20.41045916]
[1755262935982,0.06,193.69,193.68,20.41045916]
[1755262936303,0.06,193.69,193.67,20.41045916]
[1755262936514,0.06,193.69,193.68,20.41045916]
[1755262936682,0.06,193.69,193.68,25.57361488]
[1755262936880,0.06,193.69,193.68,26.23361488]
[1755262937294,0.06,193.69,193.67,26.0]
[1755262937492,0.06,193.69,193.68,20.41045916]
[1755262938091,0.06,193.69,193.68,21.07045916]
[1755262938411,0.06,193.69,193.68,20.41045916]
[1755262938595,0.06,193.69,193.65,26.0]
[1755262938596,0.06,193.69,193.67,20.41045916]
[1755262938794,0.65,193.68,193.66,20.41045916]
[1755262939112,0.06,193.69,193.67,20.41045916]
[1755262939408,0.06,193.69,193.68,20.41045916]
[1755262939608,0.06,193.69,193.66,20.41045916]
[1755262939906,0.65,193.68,193.63,31.16445688]
[1755262940211,0.65,193.68,193.66,20.41045916]
[1755262940401,0.65,193.67,193.63,26.0]
[1755262940605,20.47045916,193.69,193.59,20.41045916]
[1755262940606,21.06045916,193.66,193.59,20.41045916]
[1755262940905,21.06045916,193.66,193.57,0.03]
[1755262940906,20.41045916,193.64,193.57,0.03]
[1755262941119,21.06045916,193.65,193.59,20.41045916]
[1755262941411,5.16368893,193.66,193.57,5.19604368]
[1755262941412,21.06045916,193.64,193.58,20.41045916]
[1755262941795,24.81158238,193.64,193.58,50.16158238]
[1755262942018,0.65,193.63,193.61,0.03]
[1755262942185,24.16158238,193.62,193.61,0.03]
[1755262942384,0.65,193.63,193.61,0.03]
[1755262942784,5.81451473,193.63,193.61,0.03]
[1755262943102,0.65,193.62,193.61,0.03]
[1755262944191,81.20737081,193.62,193.61,0.03]
[1755262944990,86.37212651,193.62,193.61,0.03]
[1755262945687,3.38957286,193.62,193.61,0.03]
[1755262945903,37.9,193.63,193.61,0.03]
[1755262946209,0.65,193.62,193.61,0.03]
[1755262946421,37.9,193.63,193.61,0.03]
[1755262946625,0.65,193.62,193.61,0.03]
[1755262947121,5.8147557,193.62,193.61,0.03]
[1755262947622,8.56170288,193.62,193.61,0.03]
[1755262947803,9.21170288,193.62,193.61,0.03]
[1755262948339,5.8147557,193.62,193.61,0.03]
[1755262948529,9.21330176,193.62,193.61,0.03]
[1755262949701,0.65,193.62,193.61,0.03]
[1755262950298,43.06454074,193.63,193.61,0.03]
[1755262950497,0.65,193.62,193.61,0.03]
[1755262951293,37.9,193.63,193.61,0.03]
[1755262951609,38.55,193.63,193.61,0.03]
[1755262952315,0.65,193.62,193.61,0.03]
[1755262952709,19.93303413,193.62,193.61,0.03]
[1755262953022,41.10621557,193.6,193.59,0.03]
[1755262953200,98.2892497,193.6,193.59,0.03]
[1755262953394,104.10453895,193.6,193.59,0.03]
[1755262953600,88.2252737,193.6,193.59,0.03]
[1755262954109,67.30376888,193.6,193.59,0.03]
[1755262954289,69.06528925,193.6,193.59,0.03]
[1755262954496,104.10726582,193.6,193.57,0.03]
[1755262954816,30.98548082,193.58,193.57,0.03]
[1755262955126,18.51271132,193.58,193.57,0.03]
[1755262955308,34.39197657,193.58,193.57,0.03]
[1755262955503,40.20779948,193.58,193.57,0.03]
[1755262956518,24.32853423,193.58,193.57,0.03]
[1755262956722,3.40649575,193.58,193.57,0.03]
[1755262956932,41.30649575,193.58,193.57,0.03]
[1755262957512,46.47231866,193.58,193.57,0.03]
[1755262958332,37.9,193.58,193.57,0.03]
[1755262958630,136.80648855,193.67,193.58,5.16582291]
[1755262958821,41.31392115,193.66,193.62,15.87926525]
[1755262959019,3.41392115,193.65,193.62,15.87926525]
[1755262959334,37.9,193.64,193.61,15.87926525]
[1755262959532,37.9,193.64,193.62,15.87926525]
[1755262959736,37.9,193.64,193.62,16.53926525]
[1755262960233,0.65,193.63,193.58,21.04508816]
[1755262960409,53.77926525,193.64,193.58,21.70508816]
[1755262960760,9.22850354,193.63,193.57,5.19608525]
[1755262961037,30.98548082,193.58,193.57,0.03]
[1755262961205,72.29944313,193.58,193.57,0.03]
[1755262961402,72.94944313,193.58,193.57,0.03]
[1755262962037,57.84322756,193.58,193.57,0.03]
[1755262962539,37.9,193.58,193.57,0.03]
[1755262964330,62.21002597,193.63,193.57,0.69]
[1755262964534,57.19350973,193.62,193.57,0.03]
[1755262964737,53.77926525,193.62,193.57,0.03]
[1755262964929,37.9,193.62,193.59,15.87926525]
[1755262965252,37.9,193.62,193.57,0.03]
[1755262965253,0.06,193.63,193.61,15.87926525]
[1755262965625,0.06,193.63,193.62,0.68]
[1755262965822,0.06,193.63,193.61,15.87926525]
[1755262966022,0.06,193.63,193.6,15.87926525]
[1755262966438,0.06,193.63,193.6,16.55926525]
[1755262966737,0.06,193.63,193.57,0.03]
[1755262966924,54.44926525,193.62,193.57,0.03]
[1755262967117,37.9,193.62,193.58,16.55926525]
[1755262968323,38.57,193.62,193.57,21.07528667]
[1755262968539,37.9,193.62,193.6,15.87926525]
[1755262968738,37.9,193.62,193.61,15.87926525]
[1755262969036,37.9,193.62,193.6,5.84509513]
[1755262969237,37.9,193.62,193.61,15.87926525]
[1755262969443,37.9,193.62,193.59,5.16548163]
[1755262969740,0.06,193.63,193.6,15.87926525]
[1755262969944,0.06,193.63,193.61,15.87926525]
[1755262970124,0.06,193.63,193.6,16.55926525]
[1755262970331,0.06,193.63,193.61,15.87926525]
[1755262970641,0.06,193.63,193.62,15.87926525]
[1755262970942,0.06,193.63,193.61,15.87926525]
[1755262973243,0.06,193.63,193.62,0.68]
[1755262973618,0.06,193.63,193.61,15.87926525]
[1755262975819,0.06,193.63,193.59,5.84549445]
[1755262976015,0.06,193.63,193.59,15.87926525]
[1755262976543,0.06,193.63,193.6,15.87926525]
[1755262976746,0.06,193.63,193.59,15.87926525]
[1755262976946,0.06,193.63,193.61,15.87926525]
[1755262977152,0.06,193.63,193.6,15.87926525]
[1755262977941,0.06,193.63,193.61,15.87926525]
[1755262979046,0.06,193.63,193.61,0.68]
[1755262979231,37.94,193.63,193.62,15.87926525]
[1755262979538,0.06,193.63,193.62,15.87926525]
[1755262979741,0.06,193.63,193.62,16.55926525]
[1755262979931,0.06,193.63,193.62,15.87926525]
[1755262980127,0.06,193.63,193.62,5.1647557]
[1755262980329,0.06,193.63,193.62,21.72402095]
[1755262982357,37.94,193.63,193.57,0.03]
[1755262982551,37.94,193.63,193.58,15.87926525]
[1755262982854,0.06,193.63,193.62,15.87926525]
[1755262983229,0.06,193.63,193.62,16.55926525]
[1755262984046,0.06,193.63,193.62,21.72402095]
[1755262984431,0.06,193.63,193.62,47.72402095]
[1755262984632,0.06,193.67,193.66,26.0]
[1755262984836,0.06,193.67,193.66,41.87926525]
[1755262985065,0.06,193.67,193.66,42.55926525]
[1755262985365,0.06,193.67,193.66,41.87926525]
[1755262986655,0.06,193.67,193.66,26.0]
[1755262987567,0.06,193.67,193.64,15.87926525]
[1755262987814,0.06,193.67,193.63,26.0]
[1755262987815,0.67,193.66,193.63,26.0]
[1755262988270,0.67,193.66,193.62,15.87926525]
[1755262988474,0.73,193.65,193.6,15.87926525]
[1755262988672,15.93926525,193.65,193.59,16.55926525]
[1755262988960,38.55,193.64,193.59,47.72475431]
[1755262989536,37.88,193.64,193.6,15.87926525]
[1755262989734,38.55,193.64,193.59,15.87926525]
[1755262990170,0.67,193.63,193.58,15.87926525]
[1755262990367,0.67,193.63,193.58,21.04502914]
[1755262990569,37.88,193.64,193.59,15.87926525]
[1755262990869,37.88,193.64,193.61,15.87926525]
[1755262991047,37.88,193.64,193.61,16.55926525]
[1755262992264,37.88,193.64,193.61,5.84486925]
[1755262993556,37.88,193.64,193.62,15.87926525]
[1755262993763,0.06,193.65,193.63,15.87926525]
[1755262994176,0.06,193.65,193.62,15.87926525]
[1755262994585,0.06,193.65,193.61,15.87926525]
[1755262994770,0.06,193.65,193.6,21.04450732]
[1755262994771,0.67,193.64,193.6,21.04450732]
[1755262994971,0.06,193.65,193.6,21.04450732]
[1755262995183,0.72,193.65,193.61,15.87926525]
[1755262995395,0.06,193.65,193.62,15.87926525]
[1755262996100,0.06,193.65,193.64,26.0]
[1755262996400,0.06,193.65,193.64,56.98548082]
[1755262996565,0.06,193.65,193.64,62.85970308]
[1755262999695,0.06,193.65,193.64,100.71970308]
[1755263000070,0.06,193.65,193.64,31.16422226]
[1755263000287,0.06,193.65,193.64,26.0]
[1755263000687,0.06,193.65,193.64,47.04348751]
[1755263001199,0.06,193.65,193.64,47.75348751]
[1755263001383,0.06,193.65,193.64,85.61348751]
[1755263001579,0.06,193.67,193.64,100.71970308]
[1755263001783,0.06,193.67,193.66,41.87926525]
[1755263002298,0.06,193.67,193.66,42.58926525]
[1755263002664,0.06,193.67,193.66,41.87926525]
[1755263002903,0.06,193.67,193.66,26.0]
[1755263003090,0.72,193.67,193.65,15.87926525]
[1755263003709,0.72,193.67,193.65,21.04319884]
[1755263004276,0.06,193.67,193.66,15.87926525]
[1755263004478,0.06,193.67,193.66,16.58926525]
[1755263005887,0.06,193.67,193.66,59.59295418]
[1755263006475,1e-08,193.67,193.66,59.59295418]
[1755263006878,1e-08,193.67,193.66,58.88295418]
[1755263007403,1e-08,193.67,193.66,59.59295418]
[1755263008090,1e-08,193.67,193.66,74.69916975]
[1755263008701,1e-08,193.67,193.66,73.98916975]
[1755263008905,1e-08,193.67,193.66,58.88295418]
[1755263009993,1e-08,193.67,193.66,59.59295418]
[1755263010394,1e-08,193.67,193.66,58.88295418]
[1755263011106,1e-08,193.67,193.66,59.59295418]
[1755263011283,1e-08,193.67,193.66,58.88295418]
[1755263011679,16.53926526,193.67,193.58,5.16582291]
[1755263011879,16.53926526,193.67,193.57,5.19608978]
[1755263011880,15.87926525,193.65,193.57,5.19608978]
[1755263012109,16.53926525,193.64,193.58,53.69926525]
[1755263012285,0.66,193.64,193.61,26.0]
[1755263012478,0.66,193.64,193.61,41.87926525]
[1755263012679,0.66,193.63,193.6,15.87926525]
[1755263013382,21.04299601,193.66,193.6,15.87926525]
[1755263013597,16.53926525,193.65,193.59,15.87926525]
[1755263014005,5.16422226,193.64,193.59,15.87926525]
[1755263014200,0.66,193.63,193.59,15.87926525]
[1755263015015,0.66,193.63,193.58,42.98578546]
[1755263015203,0.66,193.62,193.59,21.04477243]
[1755263015403,19.97316897,193.67,193.6,0.71]
[1755263015613,16.53926525,193.66,193.6,15.87926525]
[1755263016112,0.66,193.65,193.6,15.87926525]
[1755263016318,1e-08,193.67,193.63,15.87926525]